[Event "Titled Tuesday Blitz July 13 2021"]
[White "Yoo, Christopher Woojin"]
[Black "Ozen, Bahadir"]
[WhiteFideId "30909694"]
[BlackFideId "6337058"]
[WhiteElo "2105"]
[BlackElo "2503"]
[Result "1/2-1/2"]
[Round "06"]
[TimeControl "180+1"]
[Date "2021.07.13"]
[WhiteClock "0:00:11"]
[BlackClock "0:00:12"]

1. e4 {[%clk 0:03:00]}  c6 {[%clk 0:02:59]} 2. d4 {[%clk 0:02:59]}  d5 {[%clk 0:03:00]} 3. exd5 {[%clk 0:03:00]}  cxd5 {[%clk 0:02:59]} 4. c4 {[%clk 0:03:00]}  Nf6 {[%clk 0:02:59]} 5. Nc3 {[%clk 0:02:59]}  Nc6 {[%clk 0:02:58]} 6. Nf3 {[%clk 0:02:59]}  Bg4 {[%clk 0:02:58]} 7. Bg5 {[%clk 0:02:59]}  Ne4 {[%clk 0:02:38]} 8. cxd5 {[%clk 0:02:50]}  Nxc3 {[%clk 0:02:31]} 9. bxc3 {[%clk 0:02:48]}  Qxd5 {[%clk 0:02:31]} 10. Qb3 {[%clk 0:02:32]}  Bxf3 {[%clk 0:01:48]} 11. gxf3 {[%clk 0:02:30]}  Qxb3 {[%clk 0:01:38]} 12. axb3 {[%clk 0:02:29]}  e6 {[%clk 0:01:39]} 13. b4 {[%clk 0:02:22]}  Be7 {[%clk 0:01:38]} 14. Be3 {[%clk 0:02:19]}  O-O {[%clk 0:01:37]} 15. f4 {[%clk 0:02:17]}  Rfc8 {[%clk 0:01:30]} 16. Bg2 {[%clk 0:02:17]}  a6 {[%clk 0:01:18]} 17. Kd2 {[%clk 0:02:15]}  Rab8 {[%clk 0:01:14]} 18. Rhb1 {[%clk 0:02:08]}  Bd8 {[%clk 0:00:58]} 19. Kd3 {[%clk 0:01:56]}  g6 {[%clk 0:00:57]} 20. c4 {[%clk 0:01:34]}  Kf8 {[%clk 0:00:52]} 21. b5 {[%clk 0:01:32]}  axb5 {[%clk 0:00:46]} 22. Rxb5 {[%clk 0:01:31]}  Bf6 {[%clk 0:00:45]} 23. Rab1 {[%clk 0:01:26]}  Nxd4 {[%clk 0:00:38]} 24. Bxd4 {[%clk 0:01:24]}  Rd8 {[%clk 0:00:37]} 25. Re5 {[%clk 0:01:09]}  g5 {[%clk 0:00:25]} 26. Kc3 {[%clk 0:00:56]}  gxf4 {[%clk 0:00:18]} 27. Re4 {[%clk 0:00:56]}  Rxd4 {[%clk 0:00:18]} 28. Rxd4 {[%clk 0:00:57]}  Rd8 {[%clk 0:00:18]} 29. Rd1 {[%clk 0:00:55]}  b6 {[%clk 0:00:19]} 30. Be4 {[%clk 0:00:31]}  Kg7 {[%clk 0:00:18]} 31. Bc6 {[%clk 0:00:24]}  Rd6 {[%clk 0:00:15]} 32. Be4 {[%clk 0:00:23]}  Rd8 {[%clk 0:00:15]} 33. h3 {[%clk 0:00:15]}  Rd6 {[%clk 0:00:14]} 34. Bf3 {[%clk 0:00:14]}  h6 {[%clk 0:00:13]} 35. Rd3 {[%clk 0:00:13]}  Kf8 {[%clk 0:00:12]} 36. Rd1 {[%clk 0:00:12]}  Kg7 {[%clk 0:00:12]} 37. Rg1+ {[%clk 0:00:11]}  Kf8 {[%clk 0:00:12]} 38. Rd1 {[%clk 0:00:11]}  Kg7 {[%clk 0:00:12]} 1/2-1/2


[Site "https://www.chess.com"]

[Event "Titled Tuesday Blitz July 13 2021"]
[White "Zubov, Alexander"]
[Black "Le, Tuan Minh"]
[WhiteFideId "14109409"]
[BlackFideId "12401153"]
[WhiteElo "2740"]
[BlackElo "2450"]
[Result "1/2-1/2"]
[Round "06"]
[TimeControl "180+1"]
[Date "2021.07.13"]
[WhiteClock "0:01:13"]
[BlackClock "0:01:27"]

1. d4 {[%clk 0:03:00]}  d5 {[%clk 0:02:58]} 2. c4 {[%clk 0:03:00]}  c6 {[%clk 0:02:58]} 3. Nf3 {[%clk 0:03:00]}  Nf6 {[%clk 0:02:58]} 4. Qb3 {[%clk 0:03:01]}  dxc4 {[%clk 0:02:59]} 5. Qxc4 {[%clk 0:03:01]}  Bg4 {[%clk 0:02:59]} 6. g3 {[%clk 0:03:02]}  Bxf3 {[%clk 0:02:59]} 7. exf3 {[%clk 0:03:01]}  e6 {[%clk 0:02:53]} 8. Nc3 {[%clk 0:02:56]}  Nbd7 {[%clk 0:02:51]} 9. Bg2 {[%clk 0:02:52]}  Nb6 {[%clk 0:02:48]} 10. Qd3 {[%clk 0:02:51]}  Be7 {[%clk 0:02:46]} 11. O-O {[%clk 0:02:51]}  O-O {[%clk 0:02:46]} 12. Rd1 {[%clk 0:02:51]}  Qd7 {[%clk 0:02:45]} 13. f4 {[%clk 0:02:49]}  Rfd8 {[%clk 0:02:45]} 14. Be3 {[%clk 0:02:48]}  Rac8 {[%clk 0:02:45]} 15. Qe2 {[%clk 0:02:46]}  Nbd5 {[%clk 0:02:45]} 16. Rac1 {[%clk 0:02:43]}  g6 {[%clk 0:02:41]} 17. Bf3 {[%clk 0:02:42]}  Bf8 {[%clk 0:02:41]} 18. h4 {[%clk 0:02:42]}  h5 {[%clk 0:02:41]} 19. Kg2 {[%clk 0:02:42]}  Bg7 {[%clk 0:02:41]} 20. Na4 {[%clk 0:02:40]}  Qe7 {[%clk 0:02:41]} 21. Nc5 {[%clk 0:02:39]}  Ne8 {[%clk 0:02:37]} 22. Nd3 {[%clk 0:02:34]}  Nd6 {[%clk 0:02:37]} 23. Ne5 {[%clk 0:02:33]}  Nf5 {[%clk 0:02:38]} 24. a3 {[%clk 0:02:26]}  Rd6 {[%clk 0:02:24]} 25. Rd3 {[%clk 0:02:18]}  Rcd8 {[%clk 0:02:23]} 26. Rcd1 {[%clk 0:02:17]}  Qf8 {[%clk 0:02:12]} 27. Bd2 {[%clk 0:02:00]}  Qe7 {[%clk 0:02:02]} 28. Kg1 {[%clk 0:01:52]}  Qc7 {[%clk 0:01:58]} 29. Bc3 {[%clk 0:01:49]}  Qe7 {[%clk 0:01:52]} 30. R3d2 {[%clk 0:01:45]}  Qe8 {[%clk 0:01:52]} 31. Be4 {[%clk 0:01:43]}  Qe7 {[%clk 0:01:45]} 32. Bb1 {[%clk 0:01:36]}  Rc8 {[%clk 0:01:39]} 33. Ba5 {[%clk 0:01:33]}  Qe8 {[%clk 0:01:34]} 34. Ba2 {[%clk 0:01:30]}  Qe7 {[%clk 0:01:26]} 35. Bb3 {[%clk 0:01:19]}  Qe8 {[%clk 0:01:27]} 36. Ba2 {[%clk 0:01:14]}  Qe7 {[%clk 0:01:27]} 37. Bb3 {[%clk 0:01:14]}  Qe8 {[%clk 0:01:27]} 38. Ba2 {[%clk 0:01:13]} 1/2-1/2


[Site "https://www.chess.com"]

[Event "Titled Tuesday Blitz July 13 2021"]
[White "Alavkin, Arseny"]
[Black "Senthil Maran K"]
[WhiteFideId "4120612"]
[BlackFideId "25035681"]
[WhiteElo "2401"]
[BlackElo "2194"]
[Result "1-0"]
[Round "07"]
[TimeControl "180+1"]
[Date "2021.07.13"]
[WhiteClock "0:01:03"]
[BlackClock "0:00:01"]

1. e4 {[%clk 0:03:00]}  c6 {[%clk 0:02:57]} 2. d4 {[%clk 0:03:00]}  d5 {[%clk 0:02:58]} 3. exd5 {[%clk 0:03:01]}  cxd5 {[%clk 0:02:58]} 4. Bd3 {[%clk 0:03:02]}  Nf6 {[%clk 0:02:58]} 5. c3 {[%clk 0:03:02]}  Bg4 {[%clk 0:02:49]} 6. Qb3 {[%clk 0:03:02]}  Qc8 {[%clk 0:02:44]} 7. Bf4 {[%clk 0:03:01]}  e6 {[%clk 0:02:40]} 8. Nd2 {[%clk 0:02:59]}  Be7 {[%clk 0:02:35]} 9. Ngf3 {[%clk 0:02:59]}  Bxf3 {[%clk 0:02:32]} 10. Nxf3 {[%clk 0:03:00]}  O-O {[%clk 0:02:32]} 11. O-O {[%clk 0:02:59]}  Nbd7 {[%clk 0:02:32]} 12. Rfe1 {[%clk 0:02:57]}  Rd8 {[%clk 0:02:16]} 13. h3 {[%clk 0:02:57]}  Nf8 {[%clk 0:02:16]} 14. g4 {[%clk 0:02:55]}  Ng6 {[%clk 0:02:13]} 15. Bg3 {[%clk 0:02:55]}  Bd6 {[%clk 0:02:10]} 16. Ne5 {[%clk 0:02:55]}  Bxe5 {[%clk 0:01:39]} 17. dxe5 {[%clk 0:02:53]}  Nd7 {[%clk 0:01:39]} 18. f4 {[%clk 0:02:53]}  Nc5 {[%clk 0:01:38]} 19. Qc2 {[%clk 0:02:53]}  Nxd3 {[%clk 0:01:34]} 20. Qxd3 {[%clk 0:02:54]}  Qc4 {[%clk 0:01:31]} 21. Rad1 {[%clk 0:02:42]}  Qxd3 {[%clk 0:01:13]} 22. Rxd3 {[%clk 0:02:43]}  Rac8 {[%clk 0:01:13]} 23. f5 {[%clk 0:02:41]}  Nf8 {[%clk 0:01:07]} 24. Rd4 {[%clk 0:02:37]}  Nd7 {[%clk 0:01:00]} 25. h4 {[%clk 0:02:22]}  Nc5 {[%clk 0:00:58]} 26. h5 {[%clk 0:02:22]}  Ne4 {[%clk 0:00:57]} 27. Bf4 {[%clk 0:02:22]}  b5 {[%clk 0:00:49]} 28. Kg2 {[%clk 0:02:13]}  Re8 {[%clk 0:00:43]} 29. h6 {[%clk 0:02:12]}  g6 {[%clk 0:00:38]} 30. f6 {[%clk 0:02:12]}  Rc4 {[%clk 0:00:32]} 31. Red1 {[%clk 0:02:09]}  Rec8 {[%clk 0:00:31]} 32. Be3 {[%clk 0:02:03]}  a6 {[%clk 0:00:30]} 33. Kf3 {[%clk 0:02:02]}  Kf8 {[%clk 0:00:31]} 34. Ke2 {[%clk 0:02:01]}  Ke8 {[%clk 0:00:31]} 35. Kd3 {[%clk 0:01:57]}  Kd7 {[%clk 0:00:29]} 36. Kc2 {[%clk 0:01:56]}  R8c6 {[%clk 0:00:25]} 37. Kb3 {[%clk 0:01:52]}  Kc8 {[%clk 0:00:24]} 38. g5 {[%clk 0:01:49]}  Kb7 {[%clk 0:00:24]} 39. R4d3 {[%clk 0:01:46]}  a5 {[%clk 0:00:24]} 40. Rg1 {[%clk 0:01:39]}  Ka6 {[%clk 0:00:24]} 41. Bd4 {[%clk 0:01:39]}  a4+ {[%clk 0:00:22]} 42. Kc2 {[%clk 0:01:38]}  b4 {[%clk 0:00:22]} 43. Ra1 {[%clk 0:01:34]}  Kb5 {[%clk 0:00:21]} 44. b3 {[%clk 0:01:32]}  Rxc3+ {[%clk 0:00:12]} 45. Bxc3 {[%clk 0:01:32]}  Rxc3+ {[%clk 0:00:12]} 46. Rxc3 {[%clk 0:01:32]}  Nxc3 {[%clk 0:00:12]} 47. a3 {[%clk 0:01:27]}  d4 {[%clk 0:00:10]} 48. axb4 {[%clk 0:01:26]}  Kxb4 {[%clk 0:00:11]} 49. bxa4 {[%clk 0:01:26]}  Nxa4 {[%clk 0:00:10]} 50. Kd3 {[%clk 0:01:26]}  Nc5+ {[%clk 0:00:07]} 51. Kc2 {[%clk 0:01:20]}  d3+ {[%clk 0:00:07]} 52. Kd1 {[%clk 0:01:20]}  Ne4 {[%clk 0:00:05]} 53. Ra7 {[%clk 0:01:14]}  Kc3 {[%clk 0:00:05]} 54. Rc7+ {[%clk 0:01:11]}  Kd4 {[%clk 0:00:05]} 55. Rxf7 {[%clk 0:01:09]}  Nc3+ {[%clk 0:00:01]} 56. Kd2 {[%clk 0:01:09]}  Ne4+ {[%clk 0:00:01]} 57. Kc1 {[%clk 0:01:03]}  Ke3 {[%clk 0:00:01]} 58. Rd7 {[%clk 0:01:03]} 1-0


[Site "https://www.chess.com"]

[Event "Titled Tuesday Blitz July 13 2021"]
[White "Aradhya, Garg"]
[Black "Ghazarian, Kirk"]
[WhiteFideId "25006746"]
[BlackFideId "30908604"]
[WhiteElo "2146"]
[BlackElo "2003"]
[Result "1-0"]
[Round "07"]
[TimeControl "180+1"]
[Date "2021.07.13"]
[WhiteClock "0:00:49"]
[BlackClock "0:00:10"]

1. d4 {[%clk 0:03:00]}  Nf6 {[%clk 0:02:58]} 2. Nf3 {[%clk 0:03:00]}  g6 {[%clk 0:02:54]} 3. Bg5 {[%clk 0:02:59]}  Bg7 {[%clk 0:02:54]} 4. Nbd2 {[%clk 0:02:59]}  d5 {[%clk 0:02:53]} 5. e3 {[%clk 0:02:59]}  O-O {[%clk 0:02:54]} 6. Bd3 {[%clk 0:02:59]}  Nbd7 {[%clk 0:02:51]} 7. O-O {[%clk 0:02:58]}  c5 {[%clk 0:02:51]} 8. c3 {[%clk 0:02:58]}  b6 {[%clk 0:02:47]} 9. h3 {[%clk 0:02:57]}  Bb7 {[%clk 0:02:47]} 10. Qb1 {[%clk 0:02:57]}  Qc7 {[%clk 0:02:43]} 11. Bf4 {[%clk 0:02:56]}  Qc8 {[%clk 0:02:39]} 12. a4 {[%clk 0:02:56]}  a6 {[%clk 0:02:37]} 13. b4 {[%clk 0:02:50]}  Re8 {[%clk 0:02:16]} 14. Rc1 {[%clk 0:02:48]}  c4 {[%clk 0:02:11]} 15. Bc2 {[%clk 0:02:46]}  Nh5 {[%clk 0:02:01]} 16. Bh2 {[%clk 0:02:41]}  f5 {[%clk 0:02:00]} 17. g4 {[%clk 0:02:36]}  fxg4 {[%clk 0:01:53]} 18. hxg4 {[%clk 0:02:37]}  Nhf6 {[%clk 0:01:53]} 19. g5 {[%clk 0:02:37]}  Nh5 {[%clk 0:01:50]} 20. Bxg6 {[%clk 0:02:28]}  hxg6 {[%clk 0:01:02]} 21. Qxg6 {[%clk 0:02:29]}  Ndf6 {[%clk 0:00:54]} 22. gxf6 {[%clk 0:02:28]}  Nxf6 {[%clk 0:00:55]} 23. Ne5 {[%clk 0:02:19]}  Rf8 {[%clk 0:00:48]} 24. Bf4 {[%clk 0:01:21]}  Qe8 {[%clk 0:00:42]} 25. Qxe8 {[%clk 0:01:12]}  Raxe8 {[%clk 0:00:38]} 26. Kg2 {[%clk 0:01:11]}  Bc8 {[%clk 0:00:28]} 27. Rh1 {[%clk 0:01:09]}  Ng4 {[%clk 0:00:20]} 28. Nxg4 {[%clk 0:01:04]}  Bxg4 {[%clk 0:00:21]} 29. Rag1 {[%clk 0:01:04]}  Bf5 {[%clk 0:00:17]} 30. f3 {[%clk 0:01:00]}  Bd3 {[%clk 0:00:12]} 31. Kf2 {[%clk 0:00:59]}  Kf7 {[%clk 0:00:13]} 32. e4 {[%clk 0:00:50]}  e6 {[%clk 0:00:13]} 33. Rh7 {[%clk 0:00:49]}  Rg8 {[%clk 0:00:10]} 34. Be5 {[%clk 0:00:49]} 1-0


[Site "https://www.chess.com"]

[Event "Titled Tuesday Blitz July 13 2021"]
[White "Begunov, Konstantin"]
[Black "Wagner, Dennis"]
[WhiteFideId "4118510"]
[BlackFideId "24650684"]
[WhiteElo "2262"]
[BlackElo "2355"]
[Result "0-1"]
[Round "07"]
[TimeControl "180+1"]
[Date "2021.07.13"]
[WhiteClock "0:00:02"]
[BlackClock "0:01:27"]

1. d4 {[%clk 0:02:54]}  d5 {[%clk 0:02:57]} 2. c4 {[%clk 0:02:49]}  e6 {[%clk 0:02:58]} 3. Nc3 {[%clk 0:02:49]}  Bb4 {[%clk 0:02:57]} 4. Qb3 {[%clk 0:02:42]}  Nc6 {[%clk 0:02:53]} 5. Nf3 {[%clk 0:02:40]}  Nf6 {[%clk 0:02:41]} 6. Bg5 {[%clk 0:02:40]}  h6 {[%clk 0:02:38]} 7. Bxf6 {[%clk 0:02:34]}  Qxf6 {[%clk 0:02:39]} 8. cxd5 {[%clk 0:02:34]}  exd5 {[%clk 0:02:40]} 9. Qxd5 {[%clk 0:02:28]}  O-O {[%clk 0:02:41]} 10. e3 {[%clk 0:02:21]}  Rd8 {[%clk 0:02:39]} 11. Qb5 {[%clk 0:02:09]}  Qg6 {[%clk 0:02:32]} 12. Ne5 {[%clk 0:01:48]}  Bxc3+ {[%clk 0:02:23]} 13. bxc3 {[%clk 0:01:49]}  Nxe5 {[%clk 0:02:22]} 14. Qxe5 {[%clk 0:01:44]}  Be6 {[%clk 0:02:17]} 15. e4 {[%clk 0:01:16]}  c5 {[%clk 0:02:10]} 16. Rd1 {[%clk 0:00:58]}  Bxa2 {[%clk 0:02:06]} 17. f3 {[%clk 0:00:49]}  cxd4 {[%clk 0:02:04]} 18. cxd4 {[%clk 0:00:49]}  a5 {[%clk 0:01:59]} 19. Kf2 {[%clk 0:00:38]}  Bb3 {[%clk 0:01:58]} 20. Rc1 {[%clk 0:00:33]}  a4 {[%clk 0:01:55]} 21. Bc4 {[%clk 0:00:33]}  Qb6 {[%clk 0:01:39]} 22. Bxb3 {[%clk 0:00:21]}  axb3 {[%clk 0:01:40]} 23. Qc5 {[%clk 0:00:19]}  Ra2+ {[%clk 0:01:40]} 24. Ke3 {[%clk 0:00:15]}  Qg6 {[%clk 0:01:38]} 25. g3 {[%clk 0:00:10]}  Qa6 {[%clk 0:01:29]} 26. Qc4 {[%clk 0:00:08]}  b2 {[%clk 0:01:27]} 27. Rc2 {[%clk 0:00:02]}  Qxc4 {[%clk 0:01:27]} 28. Rxc4 {[%clk 0:00:02]}  Ra1 {[%clk 0:01:27]} 0-1


[Site "https://www.chess.com"]

[Event "Titled Tuesday Blitz July 13 2021"]
[White "Bilych, Olexiy"]
[Black "Abdusattorov, Nodirbek"]
[WhiteFideId "14156504"]
[BlackFideId "14204118"]
[WhiteElo "2246"]
[BlackElo "2662"]
[Result "0-1"]
[Round "07"]
[TimeControl "180+1"]
[Date "2021.07.13"]
[WhiteClock "0:00:31"]
[BlackClock "0:02:19"]

1. e4 {[%clk 0:03:00]}  e6 {[%clk 0:02:58]} 2. d4 {[%clk 0:02:59]}  d5 {[%clk 0:02:59]} 3. Nc3 {[%clk 0:02:59]}  Nf6 {[%clk 0:02:58]} 4. e5 {[%clk 0:03:00]}  Nfd7 {[%clk 0:02:58]} 5. Nce2 {[%clk 0:02:59]}  c5 {[%clk 0:02:58]} 6. c3 {[%clk 0:02:59]}  Nc6 {[%clk 0:02:59]} 7. f4 {[%clk 0:02:58]}  Qb6 {[%clk 0:02:58]} 8. Nf3 {[%clk 0:02:59]}  a5 {[%clk 0:02:59]} 9. g3 {[%clk 0:02:58]}  a4 {[%clk 0:02:58]} 10. Bg2 {[%clk 0:02:53]}  a3 {[%clk 0:02:58]} 11. b3 {[%clk 0:02:53]}  cxd4 {[%clk 0:02:58]} 12. cxd4 {[%clk 0:02:52]}  Bb4+ {[%clk 0:02:58]} 13. Kf2 {[%clk 0:02:53]}  O-O {[%clk 0:02:56]} 14. Be3 {[%clk 0:02:51]}  f6 {[%clk 0:02:56]} 15. h4 {[%clk 0:02:35]}  fxe5 {[%clk 0:02:53]} 16. dxe5 {[%clk 0:02:35]}  Bc5 {[%clk 0:02:54]} 17. Bxc5 {[%clk 0:02:25]}  Nxc5 {[%clk 0:02:49]} 18. Kf1 {[%clk 0:01:18]}  Ne4 {[%clk 0:02:47]} 19. Qe1 {[%clk 0:01:18]}  Nb4 {[%clk 0:02:24]} 20. Nfd4 {[%clk 0:01:15]}  Nd3 {[%clk 0:02:22]} 21. Qd2 {[%clk 0:01:15]}  Nxg3+ {[%clk 0:02:21]} 22. Nxg3 {[%clk 0:01:06]}  Qxd4 {[%clk 0:02:19]} 23. Bf3 {[%clk 0:00:31]} 0-1


[Site "https://www.chess.com"]

[Event "Titled Tuesday Blitz July 13 2021"]
[White "Borisova, Ekaterina"]
[Black "Doluhanova, Evgeniya"]
[WhiteFideId "34124184"]
[BlackFideId "14112035"]
[WhiteElo "2021"]
[BlackElo "2134"]
[Result "1-0"]
[Round "07"]
[TimeControl "180+1"]
[Date "2021.07.13"]
[WhiteClock "0:00:19"]
[BlackClock "0:00:09"]

1. e4 {[%clk 0:03:00]}  e5 {[%clk 0:02:59]} 2. Nc3 {[%clk 0:03:00]}  Bc5 {[%clk 0:02:55]} 3. Bc4 {[%clk 0:02:57]}  Nf6 {[%clk 0:02:52]} 4. f4 {[%clk 0:02:53]}  Bxg1 {[%clk 0:02:46]} 5. Rxg1 {[%clk 0:02:51]}  d6 {[%clk 0:02:41]} 6. f5 {[%clk 0:02:43]}  h5 {[%clk 0:02:33]} 7. h3 {[%clk 0:02:40]}  Nc6 {[%clk 0:02:32]} 8. d3 {[%clk 0:02:38]}  Na5 {[%clk 0:02:24]} 9. Be3 {[%clk 0:02:34]}  Nxc4 {[%clk 0:02:24]} 10. dxc4 {[%clk 0:02:35]}  Bd7 {[%clk 0:02:23]} 11. Qd2 {[%clk 0:02:23]}  Bc6 {[%clk 0:02:23]} 12. Qd3 {[%clk 0:02:17]}  Qd7 {[%clk 0:02:07]} 13. O-O-O {[%clk 0:02:16]}  O-O-O {[%clk 0:02:05]} 14. Nd5 {[%clk 0:02:08]}  Bxd5 {[%clk 0:02:03]} 15. cxd5 {[%clk 0:02:07]}  Qa4 {[%clk 0:02:02]} 16. Bg5 {[%clk 0:02:01]}  Qxa2 {[%clk 0:01:56]} 17. b3 {[%clk 0:01:59]}  Rde8 {[%clk 0:01:43]} 18. Kd2 {[%clk 0:01:51]}  Qa5+ {[%clk 0:01:42]} 19. Ke2 {[%clk 0:01:35]}  Qb4 {[%clk 0:01:26]} 20. Kf3 {[%clk 0:01:34]}  h4 {[%clk 0:01:19]} 21. Bd2 {[%clk 0:01:25]}  Qb6 {[%clk 0:00:59]} 22. Be3 {[%clk 0:01:25]}  Qb4 {[%clk 0:00:57]} 23. Ra1 {[%clk 0:01:24]}  a6 {[%clk 0:00:56]} 24. Ra4 {[%clk 0:01:24]}  Qb5 {[%clk 0:00:54]} 25. c4 {[%clk 0:01:22]}  Qd7 {[%clk 0:00:51]} 26. c5 {[%clk 0:01:19]}  dxc5 {[%clk 0:00:45]} 27. Rc1 {[%clk 0:01:09]}  Qb5 {[%clk 0:00:45]} 28. Qxb5 {[%clk 0:00:52]}  axb5 {[%clk 0:00:44]} 29. Ra8+ {[%clk 0:00:52]}  Kd7 {[%clk 0:00:44]} 30. Rxe8 {[%clk 0:00:53]}  Nxe8 {[%clk 0:00:38]} 31. Bxc5 {[%clk 0:00:50]}  Nd6 {[%clk 0:00:28]} 32. Ra1 {[%clk 0:00:49]}  b6 {[%clk 0:00:27]} 33. Bb4 {[%clk 0:00:48]}  g6 {[%clk 0:00:27]} 34. f6 {[%clk 0:00:44]}  Rh5 {[%clk 0:00:21]} 35. Ra8 {[%clk 0:00:39]}  Rg5 {[%clk 0:00:20]} 36. Bxd6 {[%clk 0:00:35]}  Kxd6 {[%clk 0:00:18]} 37. Rf8 {[%clk 0:00:33]}  Rg3+ {[%clk 0:00:17]} 38. Kf2 {[%clk 0:00:33]}  Rxb3 {[%clk 0:00:17]} 39. Rxf7 {[%clk 0:00:34]}  Rb4 {[%clk 0:00:16]} 40. Kf3 {[%clk 0:00:29]}  Rb3+ {[%clk 0:00:16]} 41. Kg4 {[%clk 0:00:29]}  Rb2 {[%clk 0:00:16]} 42. Rf8 {[%clk 0:00:23]}  Rxg2+ {[%clk 0:00:16]} 43. Kxh4 {[%clk 0:00:24]}  b4 {[%clk 0:00:14]} 44. Rd8+ {[%clk 0:00:23]}  Kc5 {[%clk 0:00:13]} 45. f7 {[%clk 0:00:23]}  Rf2 {[%clk 0:00:13]} 46. f8=Q+ {[%clk 0:00:24]}  Rxf8 {[%clk 0:00:13]} 47. Rxf8 {[%clk 0:00:24]}  b3 {[%clk 0:00:13]} 48. Rf2 {[%clk 0:00:20]}  Kd4 {[%clk 0:00:13]} 49. Kg5 {[%clk 0:00:20]}  Kxe4 {[%clk 0:00:12]} 50. Rb2 {[%clk 0:00:20]}  Kxd5 {[%clk 0:00:12]} 51. Rxb3 {[%clk 0:00:20]}  c5 {[%clk 0:00:12]} 52. Rxb6 {[%clk 0:00:20]}  c4 {[%clk 0:00:12]} 53. Kxg6 {[%clk 0:00:19]}  e4 {[%clk 0:00:12]} 54. Kf5 {[%clk 0:00:19]}  c3 {[%clk 0:00:10]} 55. Rb1 {[%clk 0:00:17]}  Kd4 {[%clk 0:00:10]} 56. Kf4 {[%clk 0:00:18]}  e3 {[%clk 0:00:10]} 57. Rd1+ {[%clk 0:00:18]}  Kc4 {[%clk 0:00:08]} 58. Kxe3 {[%clk 0:00:19]}  c2 {[%clk 0:00:08]} 59. Rc1 {[%clk 0:00:19]}  Kc3 {[%clk 0:00:09]} 60. h4 {[%clk 0:00:19]} 1-0


[Site "https://www.chess.com"]

[Event "Titled Tuesday Blitz July 13 2021"]
[White "Chigaev, Maksim"]
[Black "Erdogdu, Mert"]
[WhiteFideId "4108116"]
[BlackFideId "6301495"]
[WhiteElo "2646"]
[BlackElo "2485"]
[Result "1-0"]
[Round "07"]
[TimeControl "180+1"]
[Date "2021.07.13"]
[WhiteClock "0:00:31"]
[BlackClock "0:00:06"]

1. d4 {[%clk 0:03:00]}  d5 {[%clk 0:02:58]} 2. c4 {[%clk 0:03:00]}  e6 {[%clk 0:02:58]} 3. Nf3 {[%clk 0:03:00]}  c5 {[%clk 0:02:58]} 4. cxd5 {[%clk 0:02:58]}  exd5 {[%clk 0:02:59]} 5. Nc3 {[%clk 0:02:57]}  Nc6 {[%clk 0:02:58]} 6. e3 {[%clk 0:02:55]}  Nf6 {[%clk 0:02:58]} 7. g3 {[%clk 0:02:52]}  cxd4 {[%clk 0:02:53]} 8. Nxd4 {[%clk 0:02:51]}  Bc5 {[%clk 0:02:53]} 9. Nb3 {[%clk 0:02:50]}  Bb6 {[%clk 0:02:53]} 10. Bg2 {[%clk 0:02:48]}  Be6 {[%clk 0:02:53]} 11. O-O {[%clk 0:02:47]}  O-O {[%clk 0:02:54]} 12. Na4 {[%clk 0:02:47]}  Re8 {[%clk 0:02:39]} 13. Nxb6 {[%clk 0:02:47]}  axb6 {[%clk 0:02:39]} 14. Nd4 {[%clk 0:02:45]}  Bg4 {[%clk 0:02:35]} 15. f3 {[%clk 0:02:45]}  Bd7 {[%clk 0:02:32]} 16. g4 {[%clk 0:02:36]}  Nxd4 {[%clk 0:02:15]} 17. Qxd4 {[%clk 0:02:34]}  Bc6 {[%clk 0:02:12]} 18. Bd2 {[%clk 0:02:32]}  Ra4 {[%clk 0:01:57]} 19. Bb4 {[%clk 0:02:32]}  Nd7 {[%clk 0:01:52]} 20. b3 {[%clk 0:02:30]}  Ra8 {[%clk 0:01:50]} 21. Bc3 {[%clk 0:02:28]}  Qg5 {[%clk 0:01:42]} 22. Rfe1 {[%clk 0:02:27]}  f6 {[%clk 0:01:32]} 23. Re2 {[%clk 0:02:19]}  Nc5 {[%clk 0:01:30]} 24. Rae1 {[%clk 0:02:14]}  Bb5 {[%clk 0:01:21]} 25. Rd2 {[%clk 0:02:14]}  Bc6 {[%clk 0:01:20]} 26. h3 {[%clk 0:01:56]}  h5 {[%clk 0:01:18]} 27. Rf2 {[%clk 0:01:43]}  hxg4 {[%clk 0:01:15]} 28. hxg4 {[%clk 0:01:44]}  Ra6 {[%clk 0:01:12]} 29. Ree2 {[%clk 0:01:33]}  Qg6 {[%clk 0:01:11]} 30. Rd2 {[%clk 0:01:28]}  Rea8 {[%clk 0:01:09]} 31. Bf1 {[%clk 0:01:20]}  R6a7 {[%clk 0:00:59]} 32. Rg2 {[%clk 0:01:15]}  Qb1 {[%clk 0:00:53]} 33. g5 {[%clk 0:01:13]}  Ne6 {[%clk 0:00:51]} 34. Qg4 {[%clk 0:01:09]}  f5 {[%clk 0:00:42]} 35. Qb4 {[%clk 0:00:50]}  Rxa2 {[%clk 0:00:37]} 36. Qd6 {[%clk 0:00:37]}  Nf8 {[%clk 0:00:12]} 37. Qe7 {[%clk 0:00:33]}  d4 {[%clk 0:00:11]} 38. Bxd4 {[%clk 0:00:32]}  Qxf1+ {[%clk 0:00:05]} 39. Kxf1 {[%clk 0:00:31]}  Ra1+ {[%clk 0:00:06]} 40. Kf2 {[%clk 0:00:31]} 1-0


[Site "https://www.chess.com"]